Cogmind - Beta 15 @@@ ROGUE MODE // 2025.08.11 @ 19:55:08 Player: 7604 Result: Destroyed by VO-O9L(R) with Subdweller Machine Gun Performance ------------- Evolutions (0) 0 Regions Visited (3) 600 Robots Destroyed (37) 185 Value Destroyed (851) 851 Prototype IDs (13) 260 Alien Tech Used (0) 0 Bonus (90) 90 TOTAL SCORE: 1986 Bonus ------- Follower Combat Kills 90 Cogmind --------- Core Integrity 0/250 Matter 300/300 Energy 200/200 System Corruption 0% Temperature Cool (0) Movement Treading (320) Ox2 Location -10/Subcaves Parts ------- > --- POWER (1) -------- Subdweller Power Source > --- PROPULSION (2) --- Light Treads Light Treads > --- UTILITY (2) ------ Huge Storage Unit Seismic Detector > --- WEAPON (2) ------- Subdweller Beam Cannon Subdweller Beam Cannon > --- INVENTORY (25) --- Ion Engine Light Treads Subdweller Monowheel Flightbrick Large Matter Pod (150) Structural Scanner Improved Terrain Scanner ECM Suite Makeshift Light Armor Plating Scrap Shield Subdweller Machine Gun Subdweller Machine Gun Light Cannon Light Cannon Rocket Launcher Rocket Launcher Rocket Launcher Datajack Mining Laser Peak State ------------ > --- POWER ------------ Light Nuclear Core > --- PROPULSION ------- Light Treads Light Treads > --- UTILITY ---------- Huge Storage Unit Makeshift Light Armor Plating > --- WEAPON ----------- Subdweller Beam Cannon Subdweller Machine Gun > --- INVENTORY -------- Ion Engine Light Treads Light Treads Light Treads Large Matter Pod Structural Scanner Improved Terrain Scanner Seismic Detector Seismic Detector ECM Suite Scrap Shield Heavy Assault Rifle Heavy Assault Rifle Autogun Autogun Autogun Autogun Light Cannon Light Cannon Rocket Launcher Rocket Launcher Rocket Launcher Datajack Mining Laser [Rating: 17] Favorites ----------- Power Light Nuclear Core Engine Subdweller Power Source Power Core Light Nuclear Core Propulsion Light Treads Treads Light Treads Utility Seismic Detector Device Seismic Detector Storage Huge Storage Unit Protection Makeshift Light Armor Plating Weapon Subdweller Beam Cannon Energy Cannon Subdweller Beam Cannon Ballistic Gun Autogun Launcher Rocket Launcher Special Weapon Mining Laser Build | -11 -10 -10 -10 ------- Run | Yrd Mat Min Sub Slots Evolved . | . . . . Power . | . . . . Propulsion . | . . . . Utility . | . . . . Weapon . | . . . . Parts Attached 26 | 6 9 . 11 Power 3 | 1 1 . 1 Engine 2 | 1 . . 1 Core 1 | . 1 . . Reactor . | . . . . Propulsion 5 | 2 . . 3 Treads 5 | 2 . . 3 Leg . | . . . . Wheel . | . . . . Hover . | . . . . Flight . | . . . . Utility 8 | 2 3 . 3 Device 3 | 1 . . 2 Storage 3 | 1 2 . . Processor . | . . . . Hackware . | . . . . Protection 2 | . 1 . 1 Artifact . | . . . . Weapon 10 | 1 5 . 4 Energy Gun . | . . . . Energy Cannon 2 | . . . 2 Ballistic Gun 6 | 1 4 . 1 Ballistic Cannon . | . . . . Launcher 1 | . . . 1 Special Weapon 1 | . 1 . . Impact Weapon . | . . . . Slashing Weapon . | . . . . Piercing Weapon . | . . . . Special Melee Weapon . | . . . . Unidentified Prototypes . | . . . . Parts Lost 4 | . . . 4 Power . | . . . . Propulsion 3 | . . . 3 Utility 1 | . . . 1 Weapon . | . . . . Highest Loss Streak 1 | . . . 1 To Critical Strikes . | . . . . Average Backups 20 | 1 16 25 22 Power 1 | . 1 2 1 Propulsion 2 | . 1 3 3 Utility 5 | . 5 6 6 Weapon 10 | . 8 13 10 Tool/Special . | . . . . Unused Backups 19 | . . . 19 Power 1 | . . . 1 Propulsion 3 | . . . 3 Utility 4 | . . . 4 Weapon 10 | . . . 10 Tool/Special 1 | . . . 1 Average Slot Usage (%) 98 | . 99 100 98 Engine 5 | . 5 . 7 Core 8 | . 8 14 6 Treads 26 | . 27 28 26 Device 13 | . 13 13 13 Storage 14 | . 14 14 14 Energy Cannon 11 | . . . 20 Ballistic Gun 15 | . 27 28 6 Peak Build Rating 17 | 6 14 14 17 Average Rating 14 | 5 11 14 15 On Entrance 8 | . 6 14 14 Naked Turns . | . . . . Heaviest Build 105 | 12 94 92 105 Greatest Support 40 | 40 40 40 40 Greatest Overweight (x) 5 | . 4 2 5 Average Overweight (x) 2 | . 1 2 2 Largest Inventory Capacity 25 | 8 25 25 25 Average Capacity 24 | 7 23 25 25 Most Carried 25 | 4 25 25 25 Average Carried 22 | 1 16 25 24 Final Capacity 25 | 8 25 25 25 Final Carried 25 | 4 25 25 23 Class Distribution -------------------- 100% | Mutant Dominant Class ---------------- Mutant | -10/Materials Mutant | -10/Mines Mutant | -10/Subcaves Resources | -11 -10 -10 -10 ----------- Run | Yrd Mat Min Sub Matter Collected 1282 | 289 651 60 282 Remotely . | . . . . Salvage Created 1237 | 71 657 50 459 Parts 77 | 12 41 1 23 Haulers Intercepted 2 | . 2 . . Recyclers Shooed . | . . . . Parts Field Recycled . | . . . . Retrieved Matter . | . . . . Parts Self-Destructed 12 | . . . 12 Prevented . | . . . . Kills | -11 -10 -10 -10 ------- Run | Yrd Mat Min Sub Combat Hostiles Destroyed 25 | . 11 3 11 Guns 14 | . 11 3 . Cannons 7 | . . . 7 AOE 2 | . . . 2 Classes Destroyed 10 | 1 7 . 2 Worker 1 | . 1 . . Tunneler 4 | 4 . . . Hauler 2 | . 2 . . Recycler 1 | . 1 . . Operator 1 | . 1 . . Watcher 3 | . 3 . . Swarmer 8 | . 3 3 2 Grunt 8 | . 8 . . Artisan 1 | . . . 1 Subdweller 9 | . . . 9 Best Kill Streak 3 | 1 3 3 3 Combat Bots Only 3 | . 3 3 3 Max Kills in Single Turn 1 | 1 1 1 1 Gunslinging . | . . . . Exploded 1 | . . . 1 Melee . | . . . . Uniques/NPCs Destroyed . | . . . . Combat | -11 -10 -10 -10 -------- Run | Yrd Mat Min Sub Hostile Shots Fired 140 | . 76 15 49 Missed 25 | . 7 3 15 Hits 115 | . 69 12 34 Projectile 115 | . 69 12 34 AOE 2 | . . . 2 Critical Strikes 5 | . 3 . 2 Damage Taken 1725 | . 818 99 808 Core 253 | . 104 9 140 Absorbed by Shields . | . . . . Regen/Repaired (Parts) 230 | . 230 . . Core Remaining (%) 100 | 100 . . . Volleys Fired 185 | 37 53 5 90 Largest 2 | 1 2 2 2 Hottest 160 | 20 100 46 160 Shots Fired 264 | 37 105 10 112 Gun 156 | 37 104 10 5 Cannon 87 | . . . 87 Launcher 3 | . . . 3 Special 18 | . 1 . 17 Kinetic 156 | 37 104 10 5 Thermal 105 | . 1 . 104 Explosive 3 | . . . 3 Electromagnetic . | . . . . Robot Hit Streak 13 | 7 13 8 5 Robot Miss Streak 4 | 4 2 1 2 Penetration Max . | . . . . Secondary Targets 4 | . 2 2 . Max Gunslinging Chain 1 | . 1 1 . Shots Hit Robots 137 | 25 75 7 30 Core Hits 44 | 6 26 3 9 Critical Kills 3 | . . 1 2 Critical Parts Destroyed 1 | 1 . . . Critical Strikes 4 | 1 . 1 2 Meltdown 2 | . . . 2 Destroy 2 | 1 . 1 . Melee Attacks . | . . . . Impact . | . . . . Slashing . | . . . . Piercing . | . . . . Sneak Attacks . | . . . . Combat Hostiles . | . . . . Follow-up Attacks . | . . . . Damage Inflicted 2365 | 210 1204 114 837 Guns 1508 | 210 1184 114 . Cannons 741 | . . . 741 Explosions 96 | . . . 96 Melee . | . . . . Ramming 20 | . 20 . . Kinetic 1508 | 210 1184 114 . Thermal 741 | . . . 741 Explosive 96 | . . . 96 Electromagnetic . | . . . . Impact . | . . . . Slashing . | . . . . Piercing . | . . . . Highest Corruption . | . . . . Average Corruption . | . . . . Corruption Purged . | . . . . Corruption Blocked . | . . . . Overload Shots . | . . . . Overflow Damage 15 | . . . 15 Projectiles . | . . . . Explosions 15 | . . . 15 Melee . | . . . . Knockbacks . | . . . . Impact . | . . . . Kinetic . | . . . . Secondary . | . . . . Self-Inflicted Damage 5 | . . . 5 Shots 1 | . . . 1 Rammed 2 | . 2 . . Targets Rammed 3 | . 3 . . Kicked . | . . . . Crushed 1 | . 1 . . Highest Temperature 343 | . 204 50 343 Average Temperature 72 | . 76 22 74 Received Heat Transfer 884 | . 456 . 428 Effects 1 | . . . 1 Interference 1 | . . . 1 Siege Activations . | . . . . Martial Activations . | . . . . Shielding Activations . | . . . . Robots Disrupted . | . . . . Combat Hostiles . | . . . . Robots Corrupted . | . . . . Combat Hostiles . | . . . . Parts Fried . | . . . . Impact Corruptions . | . . . . Robots Melted 2 | . . . 2 Combat Hostiles 2 | . . . 2 Parts Melted 6 | . . . 6 Heat Transferred 999 | . . . 999 Parts Sabotaged . | . . . . Parts Stolen . | . . . . Parts Stripped . | . . . . Power Chain Reactions . | . . . . Alert | -11 -10 -10 -10 ------- Run | Yrd Mat Min Sub Maximum Alert Level . | . . . . Low Security (%) 100 | 100 100 100 . Level 1 . | . . . . Level 2 . | . . . . Level 3 . | . . . . Level 4 . | . . . . Level 5 . | . . . . High Security . | . . . . Max Security . | . . . . Peak Influence 110 | 5 110 74 . Initial 4 | . . 4 . Average 18 | 1 27 5 . Influence Increases 647 | 20 451 126 50 Destroy 0b10 Robot/C 360 | . 220 100 40 Destroy 0b10 Robot/NC 60 | 20 40 . . Destroy Leader 90 | . 60 20 10 Allied During Kill 6 | . . 6 . Successful Hack 24 | . 24 . . Select Force Hacks 30 | . 30 . . Disable Machine 15 | . 15 . . Destroy Structure 2 | . 2 . . Lose Combat Pursuer 60 | . 60 . . Influence Decreases 597 | 20 439 138 . Entered New Map 8 | . . 8 . Time Decay 579 | 20 429 130 . Lost Ally 10 | . 10 . . Squads Dispatched 2 | . 2 . . Investigation 1 | . 1 . . Extermination . | . . . . Reinforcement 1 | . 1 . . Assault . | . . . . Garrison . | . . . . Intercept . | . . . . Searches Triggered . | . . . . Construction Impeded . | . . . . Haulers Reinforced . | . . . . Active Scanning Responses . | . . . . Cargo Convoy Interrupts . | . . . . Stealth | -11 -10 -10 -10 --------- Run | Yrd Mat Min Sub Distress Signals 1 | . 1 . . Communications Jammed . | . . . . Distress Signals . | . . . . Times Spotted 35 | . 18 5 12 Peak Tracking Total 4 | . 4 3 3 Tactical Retreats 2 | . 2 . . Traps | -11 -10 -10 -10 ------- Run | Yrd Mat Min Sub Traps Triggered 1 | . . . 1 Indirectly . | . . . . Trap Hack Attempts . | . . . . Triggered . | . . . . Disarmed . | . . . . Reprogrammed . | . . . . Reused . | . . . . Traps Extracted . | . . . . Installed . | . . . . Triggered . | . . . . Machines | -11 -10 -10 -10 ---------- Run | Yrd Mat Min Sub Machines Disabled 2 | . 1 . 1 Max in Single Turn 1 | . 1 . 1 Machines Repaired . | . . . . Machines Dismantled . | . . . . Machines Sabotaged . | . . . . Overloaded Fab Kills . | . . . . Hacking | -11 -10 -10 -10 --------- Run | Yrd Mat Min Sub Machines Accessed 11 | . 9 . 2 Terminals 7 | . 7 . . Fabricators . | . . . . Repair Stations 1 | . 1 . . Recycling Units 1 | . 1 . . Scanalyzers . | . . . . Garrison Access . | . . . . Total Hacks 35 | . 31 . 4 Successful 20 | . 16 . 4 Failed 15 | . 15 . . Catastrophic 2 | . 2 . . Database Lockouts . | . . . . Manual 22 | . 22 . . Terminals 23 | . 23 . . Fabricators . | . . . . Repair Stations 6 | . 6 . . Recycling Units 2 | . 2 . . Scanalyzers . | . . . . Garrison Access . | . . . . Terminal Hacks 7 | . 3 . 4 Record 3 | . . . 3 Robot Schematic 1 | . 1 . . Prototype ID Bank 2 | . 2 . . Proto ID Catalog 1 | . . . 1 Fabricator Hacks . | . . . . Repair Station Hacks 4 | . 4 . . Scan Component 2 | . 2 . . Repair 2 | . 2 . . Recycling Unit Hacks 1 | . 1 . . Retrieve Components 1 | . 1 . . Scanalyzer . | . . . . Garrison Access Hacks . | . . . . Unauthorized Hacks 8 | . 8 . . Terminals 7 | . 7 . . Assimilate 1 | . 1 . . Botnet 1 | . 1 . . Skim 5 | . 5 . . Fabricators . | . . . . Repair Stations . | . . . . Recycling Units 1 | . 1 . . Tunnel 1 | . 1 . . Scanalyzers . | . . . . Garrison Access . | . . . . Data Cores Recovered . | . . . . Used . | . . . . Hacking Detections 9 | . 9 . . Full Trace Events . | . . . . Feedback Events . | . . . . Feedback Blocked . | . . . . Robot Schematics Acquired 1 | . 1 . . Robots Built . | . . . . Authchips . | . . . . Time . | . . . . Total Robot Build Rating . | . . . . Part Schematics Acquired . | . . . . Parts Built . | . . . . Authchips . | . . . . Time . | . . . . Total Part Build Rating . | . . . . Parts Repaired 2 | . 2 . . Time 52 | . 52 . . Parts Recycled . | . . . . Recycled Matter . | . . . . Retrieved Matter . | . . . . Retrieved Components 3 | . 3 . . Parts Scanalyzed . | . . . . Part Schematics Acquired . | . . . . Parts Damaged . | . . . . Bothacking | -11 -10 -10 -10 ------------ Run | Yrd Mat Min Sub Used RIF Installer . | . . . . Robots Hacked . | . . . . Non-combat . | . . . . Combat . | . . . . Robot Hacks Applied . | . . . . Relay Couplers Released . | . . . . Fabnet Peak Effective % . | . . . . Robots Rewired . | . . . . Allies Hacked . | . . . . Hacks Repelled . | . . . . Allies | -11 -10 -10 -10 -------- Run | Yrd Mat Min Sub Total Allies 3 | . 1 2 . Largest Group 2 | . 1 2 2 Highest-Rated Group 43 | . 10 43 43 Highest-Rated Ally 31 | . 10 31 31 Total Orders . | . . . . Ally Attacks 12 | . . 4 8 Total Damage 234 | . . 65 169 Kills 3 | . . 2 1 Allies Corrupted . | . . . . Allies Melted 1 | . . . 1 Intel | -11 -10 -10 -10 ------- Run | Yrd Mat Min Sub Active Infowar (turns) 10746 | 102 2794 1621 6229 Structural 27 | . . . 27 Seismic 10719 | 102 2794 1621 6202 Robot Analysis Total . | . . . . Derelict Logs Recovered 5 | . . 2 3 Drone Launches . | . . . . Drone Recoveries . | . . . . Exploration | -11 -10 -10 -10 ------------- Run | Yrd Mat Min Sub Turns Passed 11083 | 217 2881 1636 6349 Spaces Moved 3175 | 89 839 500 1747 Core 10 | 10 . . . Treads 3165 | 79 839 500 1747 Legs . | . . . . Wheels . | . . . . Hover . | . . . . Flight . | . . . . Fastest Speed 50 | 50 160 320 320 Average Speed 321 | 147 303 320 339 Slowest Speed 560 | 160 480 320 560 Overloaded Moves . | . . . . Propulsion Burnouts . | . . . . Robots Hopped . | . . . . Potential Cave-ins . | . . . . Cave-ins Triggered . | . . . . Exploration Rate (%) 72 | 6 98 100 87 Regions Visited 3 Branch Regions 2 Pre-discovered Areas 4 | . 1 1 2 Known Exits Taken 1 | . 1 . . Unknown Exits Taken 2 | 1 . 1 . Scrap Searched 5 | . . 1 4 Spaces Dug 5 | . 1 . 4 Terrain Destroyed 43 | . 1 . 42 Melee . | . . . . Projectile 12 | . 1 . 11 AOE 31 | . . . 31 Terrain Rammed . | . . . . Walls Destroyed . | . . . . Machines Disabled . | . . . . Actions | -11 -10 -10 -10 --------- Run | Yrd Mat Min Sub Total 3763 | 142 1064 529 2028 Wait 302 | 7 130 23 142 Move 3172 | 88 838 499 1747 Hop . | . . . . Pick Up 33 | 4 18 . 11 Fast Attach 12 | 6 5 . 1 Attach 5 | . . . 5 Detach 2 | . 2 . . Swap 32 | . 12 2 18 Drop 17 | . 3 . 14 Fire 185 | 37 53 5 90 Melee . | . . . . Ram . | . . . . Kick . | . . . . Crush 3 | . 3 . . Escape Stasis . | . . . . Rewire . | . . . . Trap . | . . . . Miscellaneous . | . . . . Route ------- -11/Scrapyard -10/Materials (discovered 6 exits: *Mat x3 / *Min x2 / *Sub) -10/Mines (discovered 3 exits: *Mat x2 / *Sub) -10/Subcaves (discovered 4 exits: *Mat x2 / Rec / [*Scr]) History --------- Turn | Location | Event 4 | -11/Scrapyard | Discovered new exit (range 15) 218 | -11/Scrapyard | Entered Materials 313 | -10/Materials | Build established: Mutant 547 | -10/Materials | Discovered new exit (range 14) 1086 | -10/Materials | Discovered new exit (range 13) 1193 | -10/Materials | Learned location of 1 exit from Storage 1240 | -10/Materials | Identified exit to Mines 1307 | -10/Materials | Loaded intel: 16 trap records 1359 | -10/Materials | Learned Storage terminal intel 1400 | -10/Materials | Learned 4 Subcaves zone layouts 1407 | -10/Materials | Repaired Lgt. Treads 1437 | -10/Materials | Repaired Lgt. Treads 1974 | -10/Materials | Discovered new exit (range 11) 2524 | -10/Materials | Discovered new exit (range 15) 2917 | -10/Materials | Discovered new exit (range 12) 3099 | -10/Materials | Entered Mines 3100 | -10/Mines | Identified exit to Materials 3327 | -10/Mines | Learned 4 Materials zone layouts 3356 | -10/Mines | Learned 2 Materials zone layouts 4097 | -10/Mines | Learned location of Storage (-7) 4710 | -10/Mines | Discovered new exit (range 8) 4735 | -10/Mines | Entered Subcaves 4735 | -10/Subcaves | Accompanied by 2 allies 4736 | -10/Subcaves | Approached by a straggling Scientist 4736 | -10/Subcaves | Identified exit to Materials 4737 | -10/Subcaves | Identified exit to Recycling 4740 | -10/Subcaves | Led the pair of lost Derelicts to an unsafe place 4877 | -10/Subcaves | Shifting Twisted Machinery released Scrap Shield 4880 | -10/Subcaves | Shifting Twisted Machinery released Riot Gun 5581 | -10/Subcaves | Disturbed a concealed Subdweller 5583 | -10/Subcaves | Core integrity fell below 50% 5894 | -10/Subcaves | Shifting Twisted Machinery released Sub. Beam Cannon 6185 | -10/Subcaves | Learned Materials trap positions 6292 | -10/Subcaves | Scientist uncovered a shortcut to Scraptown 6388 | -10/Subcaves | Disturbed a concealed Subdweller 6765 | -10/Subcaves | Shifting Twisted Machinery released Flamer 6768 | -10/Subcaves | Learned location of Zion (-6) 6768 | -10/Subcaves | Met a Zionite searching for "candidates" 6891 | -10/Subcaves | A swath of the cavern ceiling suddenly collapsed 6963 | -10/Subcaves | Shifting Twisted Machinery released Hvy. Battle Rifle 8198 | -10/Subcaves | Ambushed by Subdwellers from Twisted Machinery 8198 | -10/Subcaves | Ambushed by Subdweller buried in earth 8220 | -10/Subcaves | Core integrity fell below 20% 8628 | -10/Subcaves | Visited 4L-MR0's lab 8659 | -10/Subcaves | Found Flightbrick 9889 | -10/Subcaves | Learned Materials garrison access intel 9945 | -10/Subcaves | Shifting Twisted Machinery released Battle Cannon 10461 | -10/Subcaves | Visited Clippyterm 10478 | -10/Subcaves | Learned Factory emergency access door positions 10748 | -10/Subcaves | A swath of the cavern ceiling suddenly collapsed 11084 | -10/Subcaves | Destroyed by VO-O9L(R) with Subdweller Machine Gun Last Messages --------------- It looks like you're defining "roguelike," quit while you're ahead. Please. 10742_ Lgt. Treads destroyed. 10745_ S-10 Pest destroyed. 10747_ Destroyed Flight Unit. 10747_ S-10 Pest destroyed. A swath of the cavern ceiling suddenly collapses. 10848_ Critical hit (Meltdown: +260). 10871_ UW-72C(R) destroyed. 10874_ Subatomizers dissect the Sub. Power Source. 10874_ Acquired 30 matter. 10963_ Subatomizers dissect the Disposable Heat Sink. 10976_ Subatomizers dissect the Sub. Power Source. 10989_ Acquired 38 matter. 11002_ Subatomizers dissect the Sub. Power Source. Map ----- +----------------------------------------------------+ | | | | | | | | | | | ?????????????????????????????????????????????????? | | ?????????????????????????????????????????????????? | | ?????????????????????????????????????????????????? | | ?????????????????????????????????????????????????? | | ?????????????????????????????????????????????????? | | ?????????????????????????????????????????????????? | | ?????????????????????????????????????????????????? | | ?????????????????????????????????????????????????? | | ?????????????????????????????????????????????????? | | ?????????????????????????????????????????????????? | | ?????????????????????????????????????????????????? | | ?????????????????????????????????????????????????? | | ?????????????????????????????????????????????????? | | ?????????????????????????????????????????????????? | | ??????????????????#####################??????????? | | ????????#?????????# # # ##?????????? | | ????????#"###?????## ##????????? | | ????????# ????# ###??????? | | ?????????? ???## ## ##?????? | | ???????????# #??# ##### #????# #?????? | | ????????????# ### # @ ##?### #?????? | | ???????????## # # ### "#?????? | | ???????????# ## % #??????? | | ???????????# ## ##?????? | | ???????????# < # #?????? | | ?????????"" ### #?????? | | ???????? "" #??## R ###! #?????? | | ???????? ## ##????## ## #### *# ##????? | | ??????? #?? ???????## ## ### ## #????? | | ?????? ??? #????????# # ### #????? | | ????? ??? ?????????## # ### ##????? | | ?????????##???????????## #### #####?? | | ?????????????????????#";;# ##??# ##? | | ?????????????????????#";;## ###?### #? | | ????????????????????#""##?## #???# #? | | ????????????????????###???## ##???## ## ##? | | ????????????????????????### ##?????##### #?? | | ????????????### ???????#" ####?????????# #? | | ???????????? ????#"" ##???????????# #? | | ??????????? [ #####""# #????????????#" #? | | ??????????? % #"###""#"##??????????? #? | | ??????????? #"" "# # #??????????##" ? | | ????????????????## ##"##"" ##??????????? % #? | | ?????????????????#######""# #??????????# * ##? | | ??????????????????????##### ##????###??# ###?? | +----------------------------------------------------+ Best States ------------- Heat Dissipation 25 Energy Generation 15 Energy Capacity 250 Matter Stores 300 Matter Capacity 300 Sight Range 16 Terrain Scan Density 10 Armor Coverage 150 Evasion (%) 40 Recoil Reduction 2 Item Schematics ----------------- None Robot Schematics ------------------ M-13 Machinist | -10/Materials | Hacked Fabricated ------------ Nothing Repaired ---------- Lgt. Treads | 15% | -10/Materials Lgt. Treads | 20% | -10/Materials Alien Tech Used ----------------- None Achievements -------------- None Challenges ------------ None Game ------ Seed TeslaDeepTether Manual? 0 Play Time 00:27:28 Cumulative 550.7 hours Start 2025.08.11 @ 19:21:29 End 2025.08.11 @ 19:55:08 Sessions 1 Manual Loads 0 Difficulty Rogue Special Mode None Game No. 283 Rogue 220 Adventurer 63 Explorer 0 Win Type - Total 10 Types 8/0/0/1/0/0/1/0/0/0 Lore% 91 Gallery% 84 Achievement% 69 Wizard Run 0 Options --------- Layout 1 ASCII 0 Keyboard 1 Movement Numpad Keybinds 0 Fullscreen 2 Font 24/Terminus Map View 50x35 Zoom Use 0% Tactical HUD 1 Map Filters NONE Filters NONE Steam 1 RUN: 952e263d-4116-4db8-ab8a-5d918be304e2